fUST/lending_fUST_20240602
["ID","MTS","AMOUNT","RATE_DAILY","PERIOD"]
[328388907,1717317055266,-500.0,0.00022739,2]
[328388908,1717317055275,-500.0,0.00022739,2]
[328388909,1717317055285,-1131.43,0.00022739,2]
[328388910,1717317055294,-500.0,0.00022739,2]
[328388911,1717317055304,-531.42,0.00022739,2]
[328388912,1717317055313,-500.0,0.00022739,2]
[328388913,1717317055322,-500.0,0.00022739,2]
[328388914,1717317055331,-500.0,0.00022739,2]
[328388915,1717317055340,-500.0,0.00022739,2]
[328388916,1717317055350,-916.29,0.00022739,2]
[328388917,1717317055359,-268.99197613,0.00022739,2]
[328388918,1717317055368,-500.0,0.00022739,2]
[328388919,1717317055377,-500.0,0.00022739,2]
[328388920,1717317055386,-500.0,0.00022739,2]
[328388921,1717317055395,-500.0,0.00022739,2]
[328388922,1717317055404,-1020.35,0.00022739,2]
[328388923,1717317055413,-500.0,0.00022739,2]
[328388924,1717317055422,-1412.31,0.00022739,2]
[328388925,1717317055432,-1744.81,0.00022739,2]
[328388926,1717317055442,-978.59,0.00022739,2]
[328388927,1717317055451,-500.0,0.00022739,2]
[328388928,1717317055460,-535.52546348,0.00022739,2]
[328388929,1717317055469,-500.0,0.00022739,2]
[328388930,1717317055478,-1238.98,0.00022739,2]
[328388931,1717317055487,-1536.65,0.00022739,2]
[328388932,1717317055497,-500.0,0.00022739,2]
[328388933,1717317055506,-3592.42,0.00022739,2]
[328388934,1717317055516,-500.0,0.00022739,2]
[328388935,1717317055525,-500.0,0.00022739,2]
[328388936,1717317055534,-698.15,0.00022739,2]
[328388937,1717317055543,-500.0,0.00022739,2]
[328388938,1717317055553,-500.0,0.00022739,2]
[328388939,1717317055562,-989.48,0.00022739,2]
[328388940,1717317055571,-4389.42,0.00022739,2]
[328388941,1717317055581,-500.0,0.00022739,2]
[328388942,1717317055590,-500.0,0.00022739,2]
[328388943,1717317055599,-500.0,0.00022739,2]
[328388944,1717317055608,-500.0,0.00022739,2]
[328388945,1717317055618,-5078.17,0.00022739,2]
[328388946,1717317055629,-500.0,0.00022739,2]
[328388947,1717317055642,-707.49,0.00022739,2]
[328388948,1717317055651,-6579.68,0.00022739,2]
[328388949,1717317055660,-500.0,0.00022739,2]
[328388950,1717317055670,-500.0,0.00022739,2]
[328388951,1717317055679,-19922.88,0.00022739,2]
[328388952,1717317055688,-1135.93,0.00022739,2]
[328388953,1717317055698,-500.0,0.00022739,2]
[328388954,1717317055707,-1655.51,0.00022739,2]
[328388955,1717317055716,-636.33,0.00022739,2]
[328388956,1717317055727,-600.95075589,0.00022739,2]
[328388957,1717317055736,-1162.32,0.00022739,2]
[328388958,1717317055745,-1123.91,0.00022739,2]
[328388959,1717317055755,-500.0,0.00022739,2]
[328388960,1717317055766,-500.0,0.00022739,2]
[328388961,1717317055775,-534.59885352,0.00022739,2]
[328388962,1717317055784,-787.27,0.00022739,2]
[328388963,1717317055794,-594.49,0.00022739,2]
[328388964,1717317055803,-590.2,0.00022739,2]
[328388965,1717317055812,-763.38,0.00022739,2]
[328388966,1717317055822,-500.0,0.00022739,2]
[328388967,1717317055831,-542.27,0.00022739,2]
[328388968,1717317055840,-946.86,0.00022739,2]
[328388969,1717317055850,-500.0,0.00022739,2]
[328388970,1717317055859,-6040.94,0.00022739,2]
[328388971,1717317055868,-500.0,0.00022739,2]
[328388972,1717317055878,-14889.61,0.00022739,2]
[328388973,1717317055888,-500.0,0.00022739,2]
[328388974,1717317055897,-500.0,0.00022739,2]
[328388975,1717317055906,-513.96129314,0.00022739,2]
[328388976,1717317055915,-500.0,0.00022739,2]
[328388977,1717317055924,-963.89,0.00022739,2]
[328388978,1717317055934,-500.0,0.00022739,2]
[328388979,1717317055943,-500.0,0.00022739,2]
[328388980,1717317055952,-2457.52,0.00022739,2]
[328388981,1717317055962,-500.0,0.00022739,2]
[328388982,1717317055971,-1326.87,0.00022739,2]
[328388983,1717317055980,-3108.34,0.00022739,2]
[328388984,1717317055989,-594.78,0.00022739,2]
[328388985,1717317055998,-500.0,0.00022739,2]
[328388986,1717317056009,-1491.4,0.00022739,2]
[328388987,1717317056020,-155.7121227,0.00022739,2]
[328388988,1717317056029,-24832.67,0.00022739,2]
[328388989,1717317056039,-24378.76,0.00022739,2]
[328388990,1717317056048,-1122.91,0.00022739,2]
[328388991,1717317056057,-500.0,0.00022739,2]
[328388992,1717317056067,-647.55,0.00022739,2]
[328388993,1717317056076,-508.19,0.00022739,2]
[328388994,1717317056086,-1524.85,0.00022739,2]
[328388995,1717317056096,-1014.83,0.00022739,2]
[328388996,1717317056105,-6437.6,0.00022739,2]
[328388997,1717317056114,-500.0,0.00022739,2]
[328388998,1717317056123,-883.98,0.00022739,2]
[328388999,1717317056133,-615.71,0.00022739,2]
[328389000,1717317056142,-2553.03,0.00022739,2]
[328389001,1717317056152,-3250.29,0.00022739,2]
[328389002,1717317056161,-500.0,0.00022739,2]
[328389003,1717317056170,-1271.98,0.00022739,2]
[328389004,1717317056179,-500.0,0.00022739,2]
[328389005,1717317056189,-500.0,0.00022739,2]
[328389006,1717317056200,-500.0,0.00022739,2]
[328389007,1717317056209,-1303.1,0.00022739,2]
[328389008,1717317056218,-489.63997406,0.00022739,2]
[328389009,1717317056227,-603.38,0.00022739,2]
[328389010,1717317056237,-1136.5,0.00022739,2]
[328389011,1717317056246,-500.0,0.00022739,2]
[328389012,1717317056255,-770.68,0.00022739,2]
[328389013,1717317056266,-761.04,0.00022739,2]
[328389014,1717317056276,-500.0,0.00022739,2]
[328389015,1717317056285,-500.0,0.00022739,2]
[328389016,1717317056294,-500.0,0.00022739,2]
[328389017,1717317056303,-500.0,0.00022739,2]
[328389018,1717317056312,-1936.05,0.00022739,2]
[328389019,1717317056321,-153.0,0.00022877,2]
[328389020,1717317056330,-583.8551692,0.00022877,2]
[328389021,1717317056339,-153.0,0.00022877,2]
[328389022,1717317056348,-153.0,0.00022877,2]
[328389023,1717317056357,-153.0,0.00022877,2]
[328389024,1717317056366,-38704.28844945,0.000229,2]
[328389025,1717317056375,-166.666666,0.00022944,2]
[328389026,1717317056384,-1995.34436985,0.00023,2]
[328389027,1717317056394,-1500.0,0.00023,2]
[328389028,1717317056403,-1500.0,0.00023,2]
[328389029,1717317056415,-1500.0,0.00023,2]
[328389030,1717317056425,-1500.0,0.00023,2]
[328389031,1717317056435,-1500.0,0.00023,2]
[328389032,1717317056446,-1500.0,0.00023,2]
[328389033,1717317056458,-1500.0,0.00023,2]
[328389034,1717317056467,-1500.0,0.00023,2]
[328389035,1717317056478,-1500.0,0.00023,2]
[328389036,1717317056487,-1500.0,0.00023,2]
[328389037,1717317056496,-1342.4,0.00023,2]
[328389038,1717317056588,-155.0,0.00023,2]
[328389039,1717317056599,-352.52624978,0.00023,2]
[328389040,1717317056609,-3857.01512126,0.00023,2]
[328389041,1717317056619,-1000.0,0.00023,2]
[328389042,1717317056631,-601.64,0.00023013,2]
[328389043,1717317056640,-534.85,0.00023013,2]
[328389044,1717317056650,-2360.67,0.00023013,2]
[328389045,1717317056659,-500.0,0.00023013,2]
[328389046,1717317056668,-500.0,0.00023013,2]
[328389047,1717317056677,-555.81,0.00023013,2]
[328389048,1717317056687,-500.0,0.00023013,2]
[328389049,1717317056696,-1207.53,0.00023013,2]
[328389050,1717317056705,-500.0,0.00023013,2]
[328389051,1717317056714,-300.0,0.00023013,2]
[328389052,1717317056723,-1900.22,0.00023013,2]
[328389053,1717317056732,-500.0,0.00023013,2]
[328389054,1717317056741,-500.0,0.00023013,2]
[328389055,1717317056750,-500.0,0.00023013,2]
[328389056,1717317056759,-500.0,0.00023013,2]
[328389057,1717317056768,-406.33249131,0.00023013,2]
[328389058,1717317056777,-500.0,0.00023013,2]
[328389059,1717317056787,-1202.18,0.00023013,2]
[328389060,1717317056796,-500.0,0.00023013,2]
[328389061,1717317056805,-500.0,0.00023013,2]
[328389062,1717317056815,-500.0,0.00023013,2]
[328389063,1717317056824,-590.75,0.00023013,2]
[328389064,1717317056834,-1537.29,0.00023013,2]
[328389065,1717317056843,-507.62,0.00023013,2]
[328389066,1717317056853,-737.62,0.00023013,2]
[328389067,1717317056863,-500.0,0.00023013,2]
[328389068,1717317056874,-500.0,0.00023013,2]
[328389069,1717317056884,-500.0,0.00023013,2]
[328389070,1717317056893,-500.0,0.00023013,2]
[328389071,1717317056905,-747.14,0.00023013,2]
[328389072,1717317056915,-500.0,0.00023013,2]
[328389073,1717317056926,-500.0,0.00023013,2]
[328389074,1717317056935,-917.82,0.00023013,2]
[328389075,1717317056944,-500.0,0.00023013,2]
[328389076,1717317056954,-500.0,0.00023013,2]
[328389077,1717317056962,-500.0,0.00023013,2]
[328389078,1717317056971,-500.0,0.00023013,2]
[328389079,1717317056982,-839.17,0.00023013,2]
[328389080,1717317056991,-500.0,0.00023013,2]
[328389081,1717317057000,-500.0,0.00023013,2]
[328389082,1717317057011,-500.0,0.00023013,2]
[328389083,1717317057020,-1027.64,0.00023013,2]
[328389084,1717317057029,-500.0,0.00023013,2]
[328389085,1717317057038,-1613.24,0.00023013,2]
[328389086,1717317057047,-729.27,0.00023013,2]
[328389087,1717317057056,-504.7,0.00023013,2]
[328389088,1717317057066,-976.72,0.00023013,2]
[328389089,1717317057075,-1683.66,0.00023013,2]
[328389090,1717317057085,-500.0,0.00023013,2]
[328389091,1717317057095,-521.83,0.00023013,2]
[328389092,1717317057104,-500.0,0.00023013,2]
[328389093,1717317057113,-518.22,0.00023013,2]
[328389094,1717317057123,-556.73,0.00023013,2]
[328389095,1717317057132,-959.83,0.00023013,2]
[328389096,1717317057141,-618.74,0.00023013,2]
[328389097,1717317057150,-500.0,0.00023013,2]
[328389098,1717317057159,-500.0,0.00023013,2]
[328389099,1717317057169,-530.2,0.00023013,2]
[328389100,1717317057178,-500.0,0.00023013,2]
[328389101,1717317057187,-643.26,0.00023013,2]
[328389102,1717317057197,-730.78,0.00023013,2]
[328389103,1717317057206,-613.81,0.00023013,2]
[328389104,1717317057215,-389.78950387,0.00023013,2]
[328389105,1717317057225,-500.0,0.00023013,2]
[328389106,1717317057234,-500.0,0.00023013,2]
[328389107,1717317057243,-910.67,0.00023013,2]
[328389108,1717317057252,-500.0,0.00023013,2]
[328389109,1717317057261,-500.0,0.00023013,2]
[328389110,1717317057271,-500.0,0.00023013,2]
[328389111,1717317057280,-2722.04,0.00023013,2]
[328389112,1717317057290,-500.0,0.00023013,2]
[328389113,1717317057299,-500.0,0.00023013,2]
[328389114,1717317057309,-910.08,0.00023013,2]
[328389115,1717317057318,-500.0,0.00023013,2]
[328389116,1717317057328,-545.34,0.00023013,2]
[328389117,1717317057338,-509.79,0.00023013,2]
[328389118,1717317057349,-500.0,0.00023013,2]
[328389119,1717317057359,-500.0,0.00023013,2]
[328389120,1717317057368,-500.0,0.00023013,2]
[328389121,1717317057377,-1011.39,0.00023013,2]
[328389122,1717317057386,-2455.04,0.00023013,2]
[328389123,1717317057396,-774.57,0.00023013,2]
[328389124,1717317057405,-500.0,0.00023013,2]
[328389125,1717317057414,-500.0,0.00023013,2]
[328389126,1717317057423,-500.0,0.00023013,2]
[328389127,1717317057433,-538.85524445,0.00023013,2]
[328389128,1717317057442,-500.0,0.00023013,2]
[328389129,1717317057451,-500.0,0.00023013,2]
[328389130,1717317057460,-1203.83,0.00023013,2]
[328389131,1717317057470,-584.09,0.00023013,2]
[328389132,1717317057479,-500.0,0.00023013,2]
[328389133,1717317057490,-500.0,0.00023013,2]
[328389134,1717317057500,-2418.82,0.00023013,2]
[328389135,1717317057511,-1622.41,0.00023013,2]
[328389136,1717317057520,-500.0,0.00023013,2]
[328389137,1717317057529,-500.0,0.00023013,2]
[328389138,1717317057541,-975.81,0.00023013,2]
[328389139,1717317057552,-2443.81,0.00023013,2]
[328389140,1717317057561,-527.53,0.00023013,2]
[328389141,1717317057570,-703.88,0.00023013,2]
[328389142,1717317057579,-500.0,0.00023013,2]
[328389143,1717317057588,-500.0,0.00023013,2]
[328389144,1717317057597,-411.15558627,0.00023013,2]
[328389145,1717317057606,-243.36176047,0.00023013,2]
[328389146,1717317057617,-500.0,0.00023013,2]
[328389147,1717317057627,-500.0,0.00023013,2]
[328389148,1717317057639,-500.0,0.00023013,2]
[328389149,1717317057651,-500.0,0.00023013,2]
[328389150,1717317057660,-545.96,0.00023013,2]
[328389151,1717317057670,-740.02,0.00023013,2]
[328389152,1717317057679,-870.48,0.00023013,2]
[328389153,1717317057689,-1902.72,0.00023013,2]
[328389154,1717317057698,-1455.37,0.00023013,2]
[328389155,1717317057710,-500.0,0.00023013,2]
[328389156,1717317057719,-590.52,0.00023013,2]
[328389157,1717317057728,-266.61221432,0.00023013,2]
[328389158,1717317057737,-543.56,0.00023013,2]
[328389159,1717317057747,-500.0,0.00023013,2]
[328389160,1717317057756,-574.29,0.00023013,2]
[328389161,1717317057767,-500.0,0.00023013,2]
[328389162,1717317057776,-500.0,0.00023013,2]
[328389163,1717317057785,-830.3,0.00023013,2]
[328389164,1717317057794,-500.0,0.00023013,2]
[328389165,1717317057803,-698.48,0.00023013,2]
[328389166,1717317057812,-1234.56,0.00023013,2]
[328389167,1717317057821,-750.5,0.00023013,2]
[328389168,1717317057830,-500.0,0.00023013,2]
[328389169,1717317057839,-604.79,0.00023013,2]
[328389170,1717317057848,-500.0,0.00023013,2]
[328389171,1717317057858,-500.0,0.00023013,2]
[328389172,1717317057867,-645.96301267,0.00023013,2]
[328389173,1717317057876,-604.29,0.00023013,2]
[328389174,1717317057885,-533.04,0.00023013,2]
[328389175,1717317057895,-500.0,0.00023013,2]
[328389176,1717317057904,-500.0,0.00023013,2]
[328389177,1717317057913,-500.0,0.00023013,2]
[328389178,1717317057923,-500.0,0.00023013,2]
[328389179,1717317057932,-1131.43,0.00023013,2]
[328389180,1717317057941,-500.0,0.00023013,2]
[328389181,1717317057950,-531.42,0.00023013,2]
[328389182,1717317057960,-500.0,0.00023013,2]
[328389183,1717317057969,-500.0,0.00023013,2]
[328389184,1717317057978,-604.59975454,0.00023013,2]
[328389185,1717317057987,-500.0,0.00023013,2]
[328389186,1717317057996,-916.29,0.00023013,2]
[328389187,1717317058005,-395.70949229,0.00023013,2]
[328389188,1717317058016,-500.0,0.00023013,2]
[328389189,1717317058026,-526.02224899,0.00023013,2]
[328389190,1717317058035,-500.0,0.00023013,2]
[328389191,1717317058044,-1020.35,0.00023013,2]
[328389192,1717317058053,-500.0,0.00023013,2]
[328389193,1717317058145,-1412.31,0.00023013,2]
[328389194,1717317058155,-1744.81,0.00023013,2]
[328389195,1717317058164,-978.59,0.00023013,2]
[328389196,1717317058174,-500.0,0.00023013,2]
[328389197,1717317058183,-500.0,0.00023013,2]
[328389198,1717317058192,-1238.98,0.00023013,2]
[328389199,1717317058202,-1536.65,0.00023013,2]
[328389200,1717317058211,-500.0,0.00023013,2]
[328389201,1717317058220,-3592.42,0.00023013,2]
[328389202,1717317058229,-500.0,0.00023013,2]
[328389203,1717317058238,-500.0,0.00023013,2]
[328389204,1717317058247,-698.15,0.00023013,2]
[328389205,1717317058257,-500.0,0.00023013,2]
[328389206,1717317058268,-500.0,0.00023013,2]
[328389207,1717317058277,-989.48,0.00023013,2]
[328389208,1717317058286,-4389.42,0.00023013,2]
[328389209,1717317058295,-500.0,0.00023013,2]
[328389210,1717317058304,-500.0,0.00023013,2]
[328389211,1717317058314,-500.0,0.00023013,2]
[328389212,1717317058323,-500.0,0.00023013,2]
[328389213,1717317058332,-5078.17,0.00023013,2]
[328389214,1717317058342,-500.0,0.00023013,2]
[328389215,1717317058351,-707.49,0.00023013,2]
[328389216,1717317058360,-6579.68,0.00023013,2]
[328389217,1717317058370,-500.0,0.00023013,2]
[328389218,1717317058379,-500.0,0.00023013,2]
[328389219,1717317058388,-19922.88,0.00023013,2]
[328389220,1717317058398,-1135.93,0.00023013,2]
[328389221,1717317058408,-347.95216612,0.00023013,2]
[328389222,1717317058418,-1655.51,0.00023013,2]
[328389223,1717317058428,-636.33,0.00023013,2]
[328389224,1717317058437,-1162.32,0.00023013,2]
[328389225,1717317058447,-1123.91,0.00023013,2]
[328389226,1717317058456,-500.0,0.00023013,2]
[328389227,1717317058466,-500.0,0.00023013,2]
[328389228,1717317058475,-787.27,0.00023013,2]
[328389229,1717317058484,-594.49,0.00023013,2]
[328389230,1717317058495,-590.2,0.00023013,2]
[328389231,1717317058505,-763.38,0.00023013,2]
[328389232,1717317058516,-500.0,0.00023013,2]
[328389233,1717317058525,-542.27,0.00023013,2]
[328389234,1717317058534,-946.86,0.00023013,2]
[328389235,1717317058544,-500.0,0.00023013,2]
[328389236,1717317058553,-6040.94,0.00023013,2]
[328389237,1717317058563,-500.0,0.00023013,2]
[328389238,1717317058572,-14889.61,0.00023013,2]
[328389239,1717317058580,-500.0,0.00023013,2]
[328389240,1717317058589,-500.0,0.00023013,2]
[328389241,1717317058598,-500.0,0.00023013,2]
[328389242,1717317058607,-963.89,0.00023013,2]
[328389243,1717317058616,-500.0,0.00023013,2]
[328389244,1717317058626,-500.0,0.00023013,2]
[328389245,1717317058638,-2457.52,0.00023013,2]
[328389246,1717317058647,-414.82925356,0.00023013,2]
[328389247,1717317058656,-1326.87,0.00023013,2]
[328389248,1717317058665,-3108.34,0.00023013,2]
[328389249,1717317058674,-594.78,0.00023013,2]
[328389250,1717317058683,-500.0,0.00023013,2]
[328389251,1717317058692,-1491.4,0.00023013,2]
[328389252,1717317058701,-24832.67,0.00023013,2]
[328389253,1717317058710,-24378.76,0.00023013,2]
[328389254,1717317058719,-1122.91,0.00023013,2]
[328389255,1717317058728,-500.0,0.00023013,2]
[328389256,1717317058737,-647.55,0.00023013,2]
[328389257,1717317058746,-508.19,0.00023013,2]
[328389258,1717317058755,-1524.85,0.00023013,2]
[328389259,1717317058765,-1014.83,0.00023013,2]
[328389260,1717317058774,-6437.6,0.00023013,2]
[328389261,1717317058783,-500.0,0.00023013,2]
[328389262,1717317058792,-883.98,0.00023013,2]
[328389263,1717317058801,-615.71,0.00023013,2]
[328389264,1717317058810,-2553.03,0.00023013,2]
[328389265,1717317058819,-3250.29,0.00023013,2]
[328389266,1717317058828,-500.0,0.00023013,2]
[328389267,1717317058838,-1271.98,0.00023013,2]
[328389268,1717317058847,-500.0,0.00023013,2]
[328389269,1717317058856,-500.0,0.00023013,2]
[328389270,1717317058866,-500.0,0.00023013,2]
[328389271,1717317058875,-1303.1,0.00023013,2]
[328389272,1717317058884,-603.38,0.00023013,2]
[328389273,1717317058893,-1136.5,0.00023013,2]
[328389274,1717317058902,-500.0,0.00023013,2]
[328389275,1717317058911,-770.68,0.00023013,2]
[328389276,1717317058920,-761.04,0.00023013,2]
[328389277,1717317058929,-500.0,0.00023013,2]
[328389278,1717317058938,-500.0,0.00023013,2]
[328389279,1717317058947,-500.0,0.00023013,2]
[328389280,1717317058956,-500.0,0.00023013,2]
[328389281,1717317058965,-1936.05,0.00023013,2]
[328389282,1717317058973,-594.04593491,0.00023232,2]
[328389283,1717317058982,-601.64,0.00023287,2]
[328389284,1717317058991,-534.85,0.00023287,2]
[328389285,1717317059001,-2360.67,0.00023287,2]
[328389286,1717317059009,-500.0,0.00023287,2]
[328389287,1717317059019,-500.0,0.00023287,2]
[328389288,1717317059028,-555.81,0.00023287,2]
[328389289,1717317059037,-500.0,0.00023287,2]
[328389290,1717317059046,-1207.53,0.00023287,2]
[328389291,1717317059055,-300.0,0.00023287,2]
[328389292,1717317059064,-500.0,0.00023287,2]
[328389293,1717317059073,-1900.22,0.00023287,2]
[328389294,1717317059082,-500.0,0.00023287,2]
[328389295,1717317059091,-500.0,0.00023287,2]
[328389296,1717317059100,-500.0,0.00023287,2]
[328389297,1717317059108,-500.0,0.00023287,2]
[328389298,1717317059117,-500.0,0.00023287,2]
[328389299,1717317059126,-1202.18,0.00023287,2]
[328389300,1717317059135,-500.0,0.00023287,2]
[328389301,1717317059144,-500.0,0.00023287,2]
[328389302,1717317059153,-500.0,0.00023287,2]
[328389303,1717317059162,-590.75,0.00023287,2]
[328389304,1717317059171,-1537.29,0.00023287,2]
[328389305,1717317059179,-507.62,0.00023287,2]
[328389306,1717317059188,-737.62,0.00023287,2]
[328389307,1717317059197,-500.0,0.00023287,2]
[328389308,1717317059206,-500.0,0.00023287,2]
[328389309,1717317059215,-500.0,0.00023287,2]
[328389310,1717317059223,-500.0,0.00023287,2]
[328389311,1717317059232,-747.14,0.00023287,2]
[328389312,1717317059243,-500.0,0.00023287,2]
[328389313,1717317059252,-500.0,0.00023287,2]
[328389314,1717317059262,-917.82,0.00023287,2]
[328389315,1717317059271,-500.0,0.00023287,2]
[328389316,1717317059281,-500.0,0.00023287,2]
[328389317,1717317059290,-500.0,0.00023287,2]
[328389318,1717317059299,-500.0,0.00023287,2]
[328389319,1717317059308,-839.17,0.00023287,2]
[328389320,1717317059317,-500.0,0.00023287,2]
[328389321,1717317059326,-500.0,0.00023287,2]
[328389322,1717317059335,-1027.64,0.00023287,2]
[328389323,1717317059344,-500.0,0.00023287,2]
[328389324,1717317059354,-500.0,0.00023287,2]
[328389325,1717317059362,-1613.24,0.00023287,2]
[328389326,1717317059371,-729.27,0.00023287,2]
[328389327,1717317059380,-504.7,0.00023287,2]
[328389328,1717317059389,-976.72,0.00023287,2]
[328389329,1717317059398,-1683.66,0.00023287,2]
[328389330,1717317059407,-500.0,0.00023287,2]
[328389331,1717317059415,-521.83,0.00023287,2]
[328389332,1717317059425,-500.0,0.00023287,2]
[328389333,1717317059433,-518.22,0.00023287,2]
[328389334,1717317059442,-556.73,0.00023287,2]
[328389335,1717317059525,-959.83,0.00023287,2]
[328389336,1717317059534,-618.74,0.00023287,2]
[328389337,1717317059543,-500.0,0.00023287,2]
[328389338,1717317059553,-500.0,0.00023287,2]
[328389339,1717317059562,-530.2,0.00023287,2]
[328389340,1717317059571,-500.0,0.00023287,2]
[328389341,1717317059579,-643.26,0.00023287,2]
[328389342,1717317059588,-730.78,0.00023287,2]
[328389343,1717317059597,-613.81,0.00023287,2]
[328389344,1717317059606,-500.0,0.00023287,2]
[328389345,1717317059615,-500.0,0.00023287,2]
[328389346,1717317059624,-910.67,0.00023287,2]
[328389347,1717317059638,-500.0,0.00023287,2]
[328389348,1717317059647,-500.0,0.00023287,2]
[328389349,1717317059656,-500.0,0.00023287,2]
[328389350,1717317059665,-2722.04,0.00023287,2]
[328389351,1717317059676,-500.0,0.00023287,2]
[328389352,1717317059685,-500.0,0.00023287,2]
[328389353,1717317059694,-910.08,0.00023287,2]
[328389354,1717317059705,-500.0,0.00023287,2]
[328389355,1717317059713,-545.34,0.00023287,2]
[328389356,1717317059723,-509.79,0.00023287,2]
[328389357,1717317059732,-500.0,0.00023287,2]
[328389358,1717317059741,-500.0,0.00023287,2]
[328389359,1717317059751,-500.0,0.00023287,2]
[328389360,1717317059760,-1011.39,0.00023287,2]
[328389361,1717317059770,-2455.04,0.00023287,2]
[328389362,1717317059780,-774.57,0.00023287,2]
[328389363,1717317059789,-500.0,0.00023287,2]
[328389364,1717317059798,-500.0,0.00023287,2]
[328389365,1717317059807,-362.7746494,0.00023287,2]
[328389366,1717317059816,-500.0,0.00023287,2]
[328389367,1717317059825,-1203.83,0.00023287,2]
[328389368,1717317059834,-500.0,0.00023287,2]
[328389369,1717317059843,-584.09,0.00023287,2]
[328389370,1717317059852,-500.0,0.00023287,2]
[328389371,1717317059861,-435.61412395,0.00023287,2]
[328389372,1717317059871,-2418.82,0.00023287,2]
[328389373,1717317059880,-1622.41,0.00023287,2]
[328389374,1717317059889,-500.0,0.00023287,2]
[328389375,1717317059898,-500.0,0.00023287,2]
[328389376,1717317059907,-975.81,0.00023287,2]
[328389377,1717317059917,-2443.81,0.00023287,2]
[328389378,1717317059926,-527.53,0.00023287,2]
[328389379,1717317059935,-703.88,0.00023287,2]
[328389380,1717317059944,-500.0,0.00023287,2]
[328389381,1717317059954,-500.0,0.00023287,2]
[328389382,1717317059963,-500.0,0.00023287,2]
[328389383,1717317059972,-500.0,0.00023287,2]
[328389384,1717317059981,-500.0,0.00023287,2]
[328389385,1717317059990,-500.0,0.00023287,2]
[328389386,1717317060000,-545.96,0.00023287,2]
[328389387,1717317060009,-740.02,0.00023287,2]
[328389388,1717317060020,-870.48,0.00023287,2]
[328389389,1717317060029,-1902.72,0.00023287,2]
[328389390,1717317060038,-1455.37,0.00023287,2]
[328389391,1717317060047,-500.0,0.00023287,2]
[328389392,1717317060056,-590.52,0.00023287,2]
[328389393,1717317060065,-543.56,0.00023287,2]
[328389394,1717317060074,-500.0,0.00023287,2]
[328389395,1717317060084,-574.29,0.00023287,2]
[328389396,1717317060093,-500.0,0.00023287,2]
[328389397,1717317060102,-500.0,0.00023287,2]
[328389398,1717317060111,-830.3,0.00023287,2]
[328389399,1717317060120,-500.0,0.00023287,2]
[328389400,1717317060130,-698.48,0.00023287,2]
[328389401,1717317060139,-1234.56,0.00023287,2]
[328389402,1717317060148,-750.5,0.00023287,2]
[328389403,1717317060157,-500.0,0.00023287,2]
[328389404,1717317060167,-604.79,0.00023287,2]
[328389405,1717317060177,-500.0,0.00023287,2]
[328389406,1717317060186,-500.0,0.00023287,2]